bitfinex/quotes_SOLUSD_20220211
["timestamp","ask_amount","ask_price","bid_price","bid_amount"]
[1644605669914,14.7544,101.74,101.66,14.7544]
[1644605670116,4.916,101.73,101.66,14.7544]
[1644605670314,25.93555873,101.73,101.66,61.36988635]
[1644605670715,25.93555873,101.73,101.66,15.0044]
[1644605671516,30.85155873,101.73,101.66,15.0044]
[1644605672418,0.02960338,101.75,101.66,71.7444]
[1644605672618,73.54280338,101.76,101.69,14.7501]
[1644605672818,73.5132,101.76,101.69,15.0001]
[1644605673021,73.5132,101.76,101.7,2.38366791]
[1644605673219,73.5132,101.76,101.7,2.63366791]
[1644605673419,36.70711587,101.77,101.7,45.3516544]
[1644605673620,36.70711587,101.77,101.67,62.74]
[1644605673621,117.94360338,101.79,101.68,4.914]
[1644605673818,0.02960338,101.77,101.67,67.654]
[1644605674020,0.02960338,101.78,101.67,67.654]
[1644605674218,4.915,101.77,101.67,70.03766791]
[1644605674420,4.94460338,101.77,101.67,70.03766791]
[1644605674619,24.2526696,101.77,101.68,100.57622263]
[1644605674821,24.22306622,101.77,101.7,14.748]
[1644605675020,24.22306622,101.77,101.7,61.4654204]
[1644605675221,29.13706622,101.77,101.7,61.7154204]
[1644605675423,24.22306622,101.77,101.7,61.7154204]
[1644605676226,4.914,101.78,101.7,61.7154204]
[1644605676435,4.914,101.78,101.71,2.38366791]
[1644605676625,0.02960338,101.79,101.72,14.7437]
[1644605676822,72.6197,101.8,101.73,6.0]
[1644605677023,72.6197,101.8,101.73,8.38366791]
[1644605677222,72.6197,101.8,101.74,35.56956883]
[1644605677422,75.59837274,101.8,101.74,35.56956883]
[1644605677823,72.6197,101.8,101.74,35.56956883]
[1644605678825,72.6197,101.8,101.74,35.81956883]
[1644605679022,77.5327,101.8,101.74,35.81956883]
[1644605679422,77.5327,101.8,101.74,0.25]
[1644605679823,77.5327,101.8,101.71,6.0]
[1644605680022,72.64930338,101.8,101.72,4.913]
[1644605680259,72.6197,101.8,101.72,5.163]
[1644605680447,9.80363239,101.79,101.72,19.9071]
[1644605680648,14.71663239,101.79,101.73,36.98882098]
[1644605680948,9.80363239,101.79,101.72,19.6571]
[1644605681146,4.913,101.79,101.72,4.913]
[1644605682149,24.4250969,101.78,101.72,52.3631789]
[1644605682348,24.4250969,101.78,101.72,52.6131789]
[1644605682748,0.25,101.79,101.72,52.6131789]
[1644605682949,4.913,101.78,101.72,52.3631789]
[1644605683148,92.5301,101.8,101.72,52.6131789]
[1644605683347,87.6161,101.8,101.72,47.7001789]
[1644605683747,25.88359541,101.79,101.72,47.7001789]
[1644605683950,87.6161,101.8,101.72,47.7001789]
[1644605684551,72.8697,101.8,101.72,62.4443789]
[1644605684750,72.6197,101.8,101.73,2.38366791]
[1644605684951,4.913,101.79,101.74,44.12140339]
[1644605685355,4.913,101.79,101.75,6.0]
[1644605685551,72.6197,101.8,101.75,6.0]
[1644605685750,24.3532,101.8,101.75,8.63366791]
[1644605686155,24.3532,101.8,101.75,6.25]
[1644605686352,24.3532,101.8,101.76,43.85302943]
[1644605686750,4.94160338,101.83,101.76,44.10302943]
[1644605686951,4.912,101.83,101.77,2.38366791]
[1644605687151,0.49334396,101.84,101.77,8.38366791]
[1644605687352,0.49334396,101.84,101.77,13.54366791]
[1644605687553,0.49334396,101.84,101.78,45.38857884]
[1644605687752,0.49334396,101.84,101.78,45.63857884]
[1644605688552,6.03207007,101.84,101.74,49.1223]
[1644605688753,6.06167345,101.84,101.74,0.25]
[1644605688954,8.44534136,101.84,101.75,4.912]
[1644605689156,4.91,101.83,101.74,0.25]
[1644605689557,25.31351288,101.82,101.74,35.47346938]
[1644605689755,25.31351288,101.82,101.74,40.38546938]
[1644605690157,4.93960338,101.83,101.74,55.12546938]
[1644605690359,17.64701525,101.84,101.74,111.61546938]
[1644605690558,4.912,101.83,101.74,111.61546938]
[1644605690757,22.55901525,101.84,101.74,111.61546938]
[1644605690957,20.17534734,101.84,101.74,113.99913729]
[1644605691360,5.43494734,101.84,101.76,47.62397353]
[1644605691661,0.49334396,101.84,101.76,47.62397353]
[1644605691859,0.49334396,101.84,101.76,104.61397353]
[1644605692059,0.49334396,101.84,101.77,6.0]
[1644605692258,0.49334396,101.84,101.77,6.25]
[1644605692460,0.49334396,101.84,101.77,0.25]
[1644605692861,0.49334396,101.84,101.78,38.66776581]
[1644605693259,0.49334396,101.84,101.78,38.91776581]
[1644605699064,0.49334396,101.84,101.78,110.39246581]
[1644605700465,0.49334396,101.84,101.78,53.65246581]
[1644605701267,0.49334396,101.84,101.77,14.7363]
[1644605701467,2.87701187,101.84,101.75,4.91]
[1644605701668,4.91,101.83,101.74,4.91]
[1644605701866,52.3544,101.83,101.73,4.912]
[1644605702069,52.38400338,101.83,101.73,4.912]
[1644605702273,29.12086835,101.82,101.74,34.21367146]
[1644605702668,29.12086835,101.82,101.73,4.912]
[1644605702870,4.912,101.81,101.72,6.29717961]
[1644605703069,4.912,101.81,101.71,474.02353162]
[1644605703270,17.5,101.8,101.69,1.38517961]
[1644605703472,4.914,101.79,101.69,1.38517961]
[1644605703669,4.914,101.79,101.66,2.75548673]
[1644605703670,16.27347673,101.78,101.68,1.38517961]
[1644605703872,14.7547,101.75,101.68,1.38517961]
[1644605704070,4.915,101.74,101.68,1.38517961]
[1644605704271,4.915,101.75,101.68,1.38517961]
[1644605704771,4.915,101.75,101.66,1.38517961]
[1644605704972,5.21228759,101.73,101.65,540.8267981]
[1644605705173,28.64877592,101.71,101.65,1.38517961]
[1644605705372,4.917,101.7,101.63,1.38517961]
[1644605705572,4.917,101.7,101.62,15.19201271]
[1644605705773,5.167,101.7,101.62,15.19201271]
[1644605705975,19.928,101.7,101.62,15.19201271]
[1644605706171,4.917,101.7,101.62,13.8068331]
[1644605706373,4.918,101.72,101.63,2.38366791]
[1644605706572,4.917,101.74,101.63,9.76884752]
[1644605706773,4.917,101.74,101.63,66.75884752]
[1644605706975,4.917,101.74,101.64,2.38366791]
[1644605707177,9.74004449,101.74,101.66,44.52779243]
[1644605707575,24.4902,101.75,101.67,2.38366791]
[1644605707777,28.3533,101.77,101.67,7.54966791]
[1644605708075,28.3533,101.77,101.68,8.38366791]
[1644605708076,23.4373,101.77,101.68,8.38366791]
[1644605708277,23.4373,101.77,101.69,4.915]
[1644605708478,23.4373,101.77,101.69,7.29866791]
[1644605708679,23.4373,101.77,101.7,43.84691433]
[1644605709074,23.4373,101.77,101.71,2.38366791]
[1644605709276,23.4373,101.77,101.71,7.54766791]
[1644605709475,23.51026176,101.79,101.72,62.74]
[1644605709677,0.03006176,101.81,101.72,65.12366791]
[1644605709876,83.38546176,101.82,101.73,2.38366791]
[1644605710075,109.60788304,101.82,101.74,43.29174255]
[1644605710275,31.16748304,101.82,101.74,43.54174255]
[1644605710677,45.05115095,101.82,101.71,4.914]
[1644605710975,0.03006176,101.81,101.69,1.38517961]
[1644605711177,16.414,101.8,101.69,1.38517961]
[1644605711377,18.82772967,101.8,101.69,0.25]
[1644605711577,26.25248304,101.77,101.68,1.38517961]
[1644605711776,7.64186204,101.75,101.67,424.51295572]
[1644605711976,4.915,101.74,101.67,419.59895572]
[1644605712181,53.9857,101.77,101.67,419.59895572]
[1644605712381,53.9857,101.77,101.67,421.98262363]
[1644605712580,53.9857,101.77,101.67,48.01614854]
[1644605712784,53.9857,101.77,101.67,48.26614854]
[1644605712785,68.7373,101.77,101.67,48.26614854]
[1644605712984,68.7373,101.77,101.67,48.01614854]
[1644605713182,68.4873,101.77,101.67,48.01614854]
[1644605713381,53.7357,101.77,101.67,106.14132815]
[1644605713583,22.67096176,101.78,101.68,67.655]
[1644605713782,22.67096176,101.78,101.68,68.135]
[1644605714005,22.67096176,101.78,101.69,3.76884752]
[1644605714204,51.8494,101.81,101.69,3.76884752]
[1644605714205,0.03006176,101.8,101.72,34.68798665]
[1644605714405,0.03006176,101.83,101.73,61.653]
[1644605714603,0.49334396,101.84,101.73,10.913]
[1644605714604,0.03006176,101.81,101.73,10.913]
[1644605714806,4.94306176,101.83,101.72,34.68798665]
[1644605715003,4.94306176,101.83,101.72,34.93798665]
[1644605715405,14.7472,101.8,101.7,1.38517961]
[1644605715604,14.77726176,101.8,101.71,6.0]
[1644605715803,4.914,101.79,101.7,6.0]
[1644605716005,0.03006176,101.79,101.69,6.0]
[1644605716405,0.03006176,101.79,101.7,37.66713421]
[1644605716608,4.914,101.78,101.7,52.41353421]
[1644605716805,0.03006176,101.79,101.72,100.31320326]
[1644605717007,23.4233,101.8,101.73,61.653]
[1644605717208,47.1929,101.82,101.73,67.903]
[1644605717209,0.03006176,101.82,101.73,67.903]
[1644605717508,0.03006176,101.83,101.74,2.38366791]
[1644605717705,0.52340572,101.84,101.77,45.25504257]
[1644605717907,28.94864247,101.83,101.77,45.25504257]
[1644605718107,0.49334396,101.84,101.77,45.25504257]
[1644605718412,4.91,101.83,101.77,45.25504257]
[1644605718812,19.6519,101.83,101.77,45.25504257]
[1644605719013,19.6519,101.83,101.71,1.86517961]
[1644605719210,22.03556791,101.83,101.72,4.913]
[1644605719409,0.03006176,101.82,101.71,10.912]
[1644605719608,4.913,101.81,101.71,4.912]
[1644605719808,19.6587,101.81,101.7,435.74672425]
[1644605720012,28.10789787,101.8,101.72,34.50574311]
[1644605720210,7.29666791,101.81,101.72,34.50574311]
[1644605720408,4.913,101.81,101.72,34.50574311]
[1644605721208,19.6578,101.81,101.72,34.50574311]
[1644605721408,30.42887645,101.8,101.72,34.50574311]
[1644605721610,4.913,101.79,101.72,34.50574311]
[1644605722008,58.01666176,101.82,101.72,34.50574311]
[1644605722612,14.7457,101.81,101.72,34.50574311]
[1644605722810,31.29264308,101.8,101.72,34.50574311]
[1644605723011,4.913,101.8,101.72,34.50574311]
[1644605723211,51.42966176,101.82,101.72,34.75574311]
[1644605723413,46.51666176,101.82,101.73,10.913]
[1644605723713,4.912,101.81,101.73,6.25]
[1644605723913,61.2307,101.82,101.74,4.913]
[1644605724114,4.912,101.81,101.75,39.65040707]
[1644605724313,46.4866,101.82,101.75,39.65040707]
[1644605724714,46.7366,101.82,101.75,39.65040707]
[1644605724914,4.912,101.81,101.75,39.65040707]
[1644605725115,46.4866,101.82,101.75,39.65040707]
[1644605725315,4.912,101.81,101.75,39.65040707]
[1644605725715,46.4866,101.82,101.75,39.65040707]
[1644605725916,46.4866,101.82,101.75,48.10140707]
[1644605726315,0.52340572,101.84,101.75,48.10140707]
[1644605726516,0.49334396,101.84,101.75,48.10140707]
[1644605726716,15.23354396,101.84,101.77,45.70108325]
[1644605726915,4.91,101.83,101.77,45.70108325]
[1644605727316,0.74334396,101.84,101.77,45.95108325]
[1644605728317,0.49334396,101.84,101.77,119.81185116]
[1644605728518,0.49334396,101.84,101.78,10.91]
[1644605728719,0.49334396,101.84,101.78,11.16]
[1644605728918,0.49334396,101.84,101.79,46.84646579]
[1644605729220,0.49334396,101.84,101.79,103.83646579]
[1644605729420,0.49334396,101.84,101.81,44.81768645]
[1644605729622,0.49334396,101.84,101.82,6.06439994]
[1644605729822,0.49334396,101.84,101.83,35.40285948]
[1644605730520,0.03006176,101.89,101.83,35.40285948]
[1644605730726,117.909,101.9,101.84,6.0]
[1644605730922,113.0,101.9,101.84,6.0]
[1644605731320,113.0,101.9,101.85,45.3539596]
[1644605731524,4.907,101.9,101.85,45.3539596]
[1644605731724,4.907,101.9,101.85,45.6039596]
[1644605731923,4.907,101.9,101.85,45.3539596]
[1644605732323,2.38366791,101.9,101.81,4.907]
[1644605732746,45.73786176,101.91,101.82,6.0]
[1644605732926,52.99946791,101.91,101.82,6.0]
[1644605733124,6.0,101.9,101.82,6.0]
[1644605733325,53.02952967,101.91,101.82,0.25]
[1644605733528,45.7078,101.91,101.83,4.908]
[1644605733724,45.7078,101.91,101.84,47.27770342]
[1644605733926,50.6148,101.91,101.84,47.27770342]
[1644605734327,67.72856791,101.91,101.84,47.27770342]
[1644605734525,4.907,101.9,101.84,41.27770342]
[1644605735227,4.907,101.9,101.84,41.52770342]
[1644605735726,45.7078,101.91,101.85,6.0]
[1644605735926,45.7078,101.91,101.82,4.908]
[1644605736125,2.38366791,101.89,101.82,4.908]
[1644605736325,4.93806176,101.9,101.82,4.908]
[1644605736528,64.12517506,101.91,101.82,4.908]
[1644605736728,64.40523682,101.91,101.82,4.908]
[1644605737028,78.85477506,101.91,101.83,46.90751638]
[1644605737230,2.38366791,101.91,101.83,53.15751638]
[1644605737434,0.03006176,101.92,101.83,53.15751638]
[1644605737629,113.03006176,101.93,101.85,0.48]
[1644605737830,0.03006176,101.95,101.85,6.48]
[1644605738033,47.44556176,101.96,101.87,14.7204]
[1644605738230,47.44556176,101.96,101.88,42.39836394]
[1644605738231,0.03006176,101.96,101.88,42.39836394]
[1644605738431,1.76887726,101.99,101.88,53.81536394]
[1644605738631,4.93506176,101.99,101.88,48.06536394]
[1644605738831,2.38366791,101.96,101.88,48.06536394]
[1644605739131,2.38366791,101.96,101.88,52.46216394]
[1644605739339,4.905,101.95,101.88,37.74236394]
[1644605739532,4.905,101.95,101.84,4.905]
[1644605739734,19.58918062,101.94,101.82,4.907]
[1644605739934,14.7298,101.91,101.82,14.7295]
[1644605740133,4.908,101.9,101.8,4.907]
[1644605740534,31.53995605,101.9,101.81,42.55134934]
[1644605740734,31.53995605,101.9,101.82,6.0]
[1644605740936,65.86053667,101.9,101.82,6.0]
[1644605741334,65.86053667,101.9,101.83,40.5164053]
[1644605741543,60.95253667,101.9,101.83,40.5164053]
[1644605741733,60.95253667,101.9,101.82,6.0]
[1644605742035,19.641,101.89,101.82,6.0]
[1644605742234,19.641,101.89,101.8,6.0]
[1644605742432,39.26024238,101.89,101.8,6.0]
[1644605742635,39.23018062,101.89,101.77,6.0]
[1644605742834,39.23018062,101.89,101.78,44.71155605]
[1644605742835,7.78579475,101.88,101.78,44.71155605]
[1644605743036,22.49033299,101.88,101.82,0.78749944]
[1644605743233,26.63195605,101.86,101.82,0.78749944]
[1644605743433,26.63195605,101.86,101.82,9.944e-05]
[1644605743633,7.29266791,101.85,101.82,9.944e-05]
[1644605743834,7.29266791,101.85,101.71,2.75548673]
[1644605743835,13.29266791,101.85,101.73,1.38517961]
[1644605744034,2.41372967,101.84,101.72,1.38517961]
[1644605744333,14.77236176,101.83,101.73,19.6538]
[1644605744533,33.05654745,101.82,101.74,38.31359585]
[1644605744734,28.14454745,101.82,101.74,5.162]
[1644605744934,28.14454745,101.82,101.71,1.38517961]
[1644605744935,4.912,101.81,101.71,1.38517961]
[1644605745338,19.6576,101.81,101.7,21.04347961]
[1644605745638,19.6576,101.81,101.69,1.38517961]
[1644605745639,2.38366791,101.8,101.69,1.38517961]
[1644605745836,6.24314159,101.79,101.68,2.38209034]
[1644605746043,4.914,101.78,101.68,2.38209034]
[1644605746235,11.5,101.77,101.68,0.99691073]
[1644605746434,14.7548,101.75,101.68,0.99691073]
[1644605746633,4.915,101.74,101.68,0.99691073]
[1644605746835,25.67553168,101.73,101.68,0.99691073]
[1644605747036,4.916,101.72,101.68,0.99691073]
[1644605747534,40.43363168,101.73,101.68,0.99691073]
[1644605747535,25.67553168,101.73,101.68,0.99691073]
[1644605747963,4.916,101.72,101.68,0.99691073]
[1644605748559,19.6758,101.72,101.68,0.99691073]
[1644605748762,4.916,101.72,101.68,0.99691073]
[1644605749160,4.916,101.74,101.68,0.99691073]
[1644605749368,4.915,101.75,101.68,0.99691073]
[1644605749561,16.415,101.76,101.68,0.99691073]
[1644605749860,4.915,101.76,101.68,0.99691073]
[1644605750064,28.51318725,101.76,101.68,0.99691073]
[1644605750464,4.915,101.75,101.68,0.99691073]
[1644605750666,45.8194,101.78,101.68,5.91191073]
[1644605750861,60.5704,101.78,101.68,5.91191073]
[1644605751067,4.914,101.77,101.68,0.99691073]
[1644605751265,91.65958062,101.78,101.68,0.99691073]
[1644605751266,9.79429714,101.78,101.68,0.99691073]
[1644605751467,31.46013665,101.77,101.69,13.88366791]
[1644605751662,30.96013665,101.77,101.69,8.67884752]
[1644605751863,30.96013665,101.77,101.7,6.0]
[1644605752470,77.55926016,101.75,101.67,3.14395585]
[1644605752667,4.642,101.74,101.64,1.38517961]
[1644605752964,11.5,101.73,101.63,4.913]
[1644605753167,11.5,101.73,101.62,4.916]
[1644605753364,6.0,101.72,101.62,4.916]
[1644605753664,0.86855163,101.7,101.61,36.30623578]
[1644605753864,0.86855163,101.7,101.62,4.917]
[1644605754264,4.918,101.69,101.62,4.917]
[1644605754466,0.86855163,101.7,101.6,467.82467108]
[1644605754665,0.86855163,101.7,101.61,4.918]
[1644605755067,0.86855163,101.7,101.62,39.88196516]
[1644605755265,0.86855163,101.7,101.63,4.918]
[1644605755769,0.86855163,101.7,101.63,5.168]
[1644605756167,0.86855163,101.7,101.63,4.918]
[1644605756369,0.86855163,101.7,101.63,5.168]
[1644605756572,4.918,101.69,101.63,4.918]
[1644605757170,11.5,101.68,101.63,4.918]
[1644605757369,19.09504236,101.66,101.58,48.65626365]
[1644605757569,19.09504236,101.66,101.59,4.92]
[1644605757770,11.5,101.65,101.55,2.38209034]
[1644605757970,54.5675,101.68,101.59,4.92]
[1644605758272,23.819,101.68,101.6,6.0]
[1644605758469,22.7122,101.71,101.61,4.918]
[1644605758671,4.918,101.7,101.6,2.38366791]
[1644605758868,34.2122,101.71,101.61,11.168]
[1644605759068,25.55326382,101.7,101.61,6.0]
[1644605759271,25.55326382,101.7,101.61,0.25]
[1644605759670,11.5,101.69,101.59,4.918]
[1644605759872,4.918,101.68,101.56,1.38517961]
[1644605760070,5.79254797,101.67,101.58,36.45743157]
[1644605760272,5.79254797,101.67,101.6,43.7176159]
[1644605760470,0.25,101.7,101.61,4.918]
[1644605760874,16.418,101.69,101.57,9.76884752]
[1644605761072,18.80166791,101.69,101.57,8.38366791]
[1644605761273,6.0,101.68,101.55,2.38209034]
[1644605761474,16.42,101.67,101.55,0.99691073]
[1644605761672,30.06640608,101.67,101.55,0.99691073]
[1644605761872,34.68500495,101.66,101.55,0.99691073]
[1644605762173,14.7753,101.63,101.55,0.99691073]
[1644605762374,16.421,101.62,101.55,1.073e-05]
[1644605762675,16.421,101.62,101.5,1.38517961]
[1644605762676,52.5,101.61,101.5,1.38517961]
[1644605762876,4.923,101.6,101.48,1.38517961]
[1644605763172,11.5,101.59,101.46,1.38517961]
[1644605763377,4.924,101.58,101.47,3.85635]
[1644605763674,11.5,101.57,101.47,3.85635]
[1644605763874,22.76273817,101.57,101.43,1.38517961]
[1644605764078,14.7925,101.53,101.43,1.38517961]
[1644605764274,10.926,101.52,101.44,38.87424272]
[1644605764474,10.926,101.56,101.45,4.926]
[1644605764779,10.926,101.56,101.46,43.6783002]
[1644605764780,6.0,101.56,101.46,43.6783002]
[1644605764978,46.1285,101.57,101.48,38.6550423]
[1644605765274,24.3352,101.6,101.49,10.924]
[1644605765475,35.8352,101.6,101.5,36.78440471]
[1644605765674,35.8352,101.6,101.46,1.38517961]
[1644605765977,4.924,101.59,101.44,1.38517961]
[1644605766174,4.924,101.59,101.45,4.925]
[1644605766175,18.80766791,101.59,101.45,4.925]
[1644605766375,11.5,101.59,101.46,0.48]
[1644605766578,6.0,101.58,101.46,48.2652291]
[1644605766774,16.425,101.58,101.46,48.2652291]
[1644605766974,11.5,101.58,101.46,49.65040871]
[1644605767178,11.5,101.58,101.48,38.04131673]
[1644605767576,11.5,101.58,101.47,6.0]
[1644605767779,11.5,101.58,101.45,6.31017961]
[1644605767975,4.925,101.57,101.45,4.925]
[1644605768179,11.5,101.56,101.45,4.925]
[1644605768580,11.5,101.56,101.46,44.35015955]
[1644605768785,4.925,101.58,101.47,1.38517961]
[1644605768786,16.425,101.58,101.47,1.38517961]
[1644605768980,11.5,101.58,101.46,6.0]
[1644605769179,11.5,101.58,101.45,6.31017961]
[1644605769180,7.30866791,101.57,101.45,6.31017961]
[1644605769379,7.30866791,101.57,101.45,1.38517961]
[1644605769380,11.5,101.56,101.45,1.38517961]
[1644605769579,4.925,101.55,101.41,359.61676924]
[1644605769879,11.5,101.54,101.42,1.38517961]
[1644605770078,11.5,101.54,101.43,47.26438353]
[1644605770282,11.5,101.54,101.43,42.33838353]
[1644605770479,6.0,101.55,101.45,47.16606917]
[1644605770684,10.926,101.55,101.45,47.16606917]
[1644605770878,10.926,101.55,101.47,39.10315867]
[1644605771082,6.0,101.55,101.47,39.10315867]
[1644605771279,11.5,101.54,101.47,39.10315867]
[1644605771485,11.5,101.54,101.47,39.35315867]
[1644605771880,6.0,101.55,101.47,39.35315867]
[1644605772082,6.0,101.55,101.47,0.25]
[1644605772680,11.5,101.54,101.46,6.25]
[1644605772883,11.5,101.54,101.47,4.926]
[1644605773082,16.425,101.54,101.45,1.38517961]
[1644605773281,16.425,101.54,101.42,5.13915464]
[1644605773282,6.0,101.53,101.43,1.38517961]
[1644605773483,16.426,101.52,101.43,1.38517961]
[1644605773684,16.426,101.52,101.42,1.38517961]
[1644605774083,6.0,101.51,101.42,43.27382937]
[1644605774284,16.426,101.5,101.42,41.88864976]
[1644605774484,4.928,101.51,101.42,48.20182937]
[1644605774685,0.62647475,101.51,101.43,3.76884752]
[1644605774885,11.5,101.52,101.44,50.11481448]
[1644605775183,10.29831561,101.58,101.44,52.49848239]
[1644605775184,123.7387,101.57,101.44,52.49848239]
[1644605775383,11.5,101.55,101.53,14.43046298]
[1644605775882,19.41044678,101.54,101.53,14.43046298]
[1644605776084,24.33444678,101.54,101.53,14.43046298]
[1644605776286,19.41044678,101.54,101.53,14.43046298]
[1644605776485,19.66044678,101.54,101.53,7.65439962]
[1644605776684,24.58444678,101.54,101.53,7.65439962]
[1644605777087,36.08444678,101.54,101.45,1.38517961]
[1644605777285,0.74130165,101.52,101.44,50.39966351]
[1644605777885,0.74130165,101.52,101.44,6.30917961]
[1644605778085,0.74130165,101.52,101.44,4.924]
[1644605778086,16.426,101.51,101.44,4.924]
[1644605778486,11.5,101.51,101.43,1.38517961]
[1644605778687,11.5,101.51,101.42,6.31117961]
[1644605778891,29.22324198,101.5,101.42,1.38517961]
[1644605779089,1.85450645,101.48,101.42,1.38517961]
[1644605779290,6.0,101.47,101.41,1.38517961]
[1644605779493,6.0,101.47,101.4,1.38517961]
[1644605779689,17.5,101.47,101.4,1.38517961]
[1644605779889,22.429,101.47,101.4,1.38517961]
[1644605780391,15.361131,101.46,101.4,1.38517961]
[1644605780691,11.5,101.45,101.4,1.38517961]
[1644605780893,4.929,101.44,101.39,1.38517961]
[1644605781092,11.5,101.45,101.39,1.38517961]
[1644605781395,9.71961743,101.44,101.41,1.38517961]
[1644605781620,9.71961743,101.44,101.4,1.38517961]
[1644605781822,4.79061743,101.44,101.39,1.38517961]
[1644605782023,11.5,101.45,101.4,1.38517961]
[1644605782624,11.75,101.45,101.4,1.38517961]
[1644605783033,16.6978136,101.44,101.4,1.38517961]
[1644605783324,28.1978136,101.44,101.4,0.88517961]
[1644605783525,28.1978136,101.44,101.37,4.93]
[1644605783927,4.93,101.43,101.37,4.93]
[1644605784128,16.43,101.43,101.37,4.93]
[1644605784326,3.45393483,101.42,101.37,4.93]
[1644605784927,11.5,101.41,101.37,4.93]
[1644605785131,16.6978136,101.4,101.35,3.63125656]
[1644605785327,16.6978136,101.4,101.35,3.88125656]
[1644605785529,28.1978136,101.4,101.36,3.94487918]
[1644605786331,48.0,101.38,101.33,4.931]
[1644605786535,31.0,101.39,101.28,6.69243009]
[1644605786536,11.5,101.37,101.3,3.89528441]
[1644605786730,28.1461543,101.36,101.28,4.932]
[1644605787133,0.86245839,101.34,101.28,4.932]
[1644605787329,11.5,101.34,101.28,47.26623661]
[1644605787529,11.5,101.37,101.28,47.26623661]
[1644605787932,11.5,101.37,101.32,4.933]
[1644605788131,23.9142,101.41,101.32,4.933]
[1644605788332,11.5,101.4,101.33,36.36080373]
[1644605788534,11.5,101.4,101.35,46.12714302]
[1644605788732,9.6239966,101.41,101.35,0.25]
[1644605789137,21.1239966,101.41,101.35,0.25]
[1644605789441,11.5,101.41,101.33,5.182]
[1644605789833,11.5,101.41,101.34,6.0]
[1644605790035,11.5,101.43,101.34,6.0]
[1644605790234,11.5,101.43,101.34,6.25]
[1644605790437,11.5,101.43,101.35,34.51150851]
[1644605790637,23.1436,101.47,101.36,4.931]
[1644605790835,3.78699,101.46,101.36,13.56466791]
[1644605791035,3.78699,101.46,101.36,9.11366791]
[1644605791333,3.78699,101.46,101.37,2.38366791]
[1644605791536,3.78699,101.46,101.39,14.7911]
[1644605791739,3.78699,101.46,101.4,6.0]
[1644605792134,3.78699,101.46,101.41,2.38366791]
[1644605792335,11.5,101.51,101.42,6.0]
[1644605792536,15.28699,101.51,101.42,6.0]
[1644605792736,30.08079,101.51,101.42,2.38366791]
[1644605792937,12.40307912,101.5,101.4,47.14070637]
[1644605793136,12.40307912,101.5,101.4,47.39070637]
[1644605793137,11.5,101.49,101.4,47.39070637]
[1644605793336,4.928,101.48,101.4,47.39070637]
[1644605793937,4.928,101.48,101.4,5.4624733]
[1644605794136,16.428,101.48,101.4,5.2124733]
[1644605794341,26.298,101.48,101.4,5.2124733]
[1644605795137,4.929,101.47,101.4,5.2124733]
[1644605795339,11.5,101.46,101.4,5.2124733]
[1644605795538,4.929,101.45,101.4,5.2124733]
[1644605795737,11.5,101.46,101.4,5.2124733]
[1644605796737,11.75,101.46,101.4,5.2124733]
[1644605796941,4.929,101.45,101.4,5.2124733]
[1644605797339,0.25,101.46,101.4,5.2124733]
[1644605797540,16.429,101.45,101.4,5.2124733]
[1644605797939,11.5,101.45,101.4,5.2124733]
[1644605798540,16.429,101.45,101.4,5.2124733]
[1644605798941,0.25,101.46,101.4,5.2124733]
[1644605799742,11.75,101.47,101.4,5.2124733]
[1644605799942,4.929,101.46,101.4,5.2124733]
[1644605800846,16.429,101.47,101.4,5.2124733]
[1644605801043,16.429,101.47,101.41,37.26164407]
[1644605801443,11.5,101.47,101.41,37.26164407]
[1644605801645,11.75,101.47,101.41,37.51164407]
[1644605801841,4.929,101.46,101.4,5.2124733]
[1644605802045,16.429,101.46,101.4,5.2124733]
[1644605804248,16.429,101.46,101.44,4.6032398]
[1644605804446,31.2297,101.46,101.4,5.2124733]
[1644605804650,26.3007,101.46,101.4,5.2124733]
[1644605804845,10.929,101.45,101.4,5.2124733]
[1644605805047,11.5,101.44,101.4,5.2124733]